Cogmind - Beta 14 @@@ ROGUE MODE // 2024.09.15 @ 21:33:24 Player: Alexlascribe Result: Self-destructed Performance ------------- Evolutions (1) 500 Regions Visited (3) 600 Robots Destroyed (17) 85 Value Destroyed (415) 415 Prototype IDs (0) 0 Alien Tech Used (0) 0 Bonus (0) 0 TOTAL SCORE: 1600 Bonus ------- None Cogmind --------- Core Integrity 306/400 Matter 153/300 Energy 100/100 System Corruption 0% Temperature Cool (0) Movement Core (350) Ox6 Location -9/Mines Parts ------- > --- POWER (1) -------- (None) > --- PROPULSION (2) --- (None) > --- UTILITY (2) ------ Medium Storage Unit Seismic Detector > --- WEAPON (4) ------- Shotgun Shotgun Shotgun > --- INVENTORY (10) --- Ion Engine Light Ion Engine Improved Hover Unit Improved Hover Unit Targeting Computer Targeting Computer Tractor Beam Grenade Launcher Peak State ------------ > --- POWER ------------ Light Nuclear Core > --- PROPULSION ------- Improved Hover Unit Improved Hover Unit > --- UTILITY ---------- Small Storage Unit Seismic Detector > --- WEAPON ----------- Shotgun Shotgun Shotgun Shotgun > --- INVENTORY -------- Ion Engine Light Ion Engine Improved Hover Unit Improved Hover Unit Targeting Computer Targeting Computer Tractor Beam Grenade Launcher [Rating: 18] Favorites ----------- Power Light Nuclear Core Engine Light Ion Engine Power Core Light Nuclear Core Propulsion Hover Unit Wheel Wheel Hover Unit Hover Unit Utility Seismic Detector Device Seismic Detector Storage Small Storage Unit Weapon Shotgun Energy Gun Medium Laser Ballistic Gun Shotgun Build | -11 -10 -9 -9 ------- Run | Yrd Mat Mat Min Slots Evolved 2 | . . 2 . Power . | . . . . Propulsion . | . . . . Utility . | . . . . Weapon 2 | . . 2 . Parts Attached 26 | 7 14 4 1 Power 3 | 1 2 . . Engine 2 | 1 1 . . Core 1 | . 1 . . Reactor . | . . . . Propulsion 11 | 2 7 2 . Treads . | . . . . Leg . | . . . . Wheel 2 | 2 . . . Hover 9 | . 7 2 . Flight . | . . . . Utility 3 | 2 . . 1 Device 1 | 1 . . . Storage 2 | 1 . . 1 Processor . | . . . . Hackware . | . . . . Protection . | . . . . Artifact . | . . . . Weapon 9 | 2 5 2 . Energy Gun 2 | 2 . . . Energy Cannon . | . . . . Ballistic Gun 7 | . 5 2 . Ballistic Cannon . | . . . . Launcher . | . . . . Special Weapon . | . . . . Impact Weapon . | . . . . Slashing Weapon . | . . . . Piercing Weapon . | . . . . Special Melee Weapon . | . . . . Unidentified Prototypes . | . . . . Parts Lost 9 | . 5 . 4 Power 2 | . 1 . 1 Propulsion 5 | . 3 . 2 Utility . | . . . . Weapon 2 | . 1 . 1 Highest Loss Streak 4 | . 2 . 4 To Critical Strikes . | . . . . Average Slot Usage (%) 98 | . 97 99 98 Engine 4 | . 8 . . Core 7 | . 5 11 11 Hover 24 | . 26 22 20 Device 12 | . 14 11 11 Storage 12 | . 14 11 11 Energy Gun 4 | . 8 . . Ballistic Gun 29 | . 18 43 44 Peak Build Rating 18 | 7 12 18 18 Average Rating 11 | 4 7 17 17 On Entrance 9 | . 7 12 18 Naked Turns . | . . . . Heaviest Build 28 | 13 17 23 28 Greatest Support 26 | 26 26 14 14 Greatest Overweight (x) 4 | . 4 1 3 Average Overweight (x) . | . . 1 1 Largest Inventory Capacity 10 | 8 8 8 10 Average Capacity 8 | 7 8 8 9 Most Carried 8 | 4 8 8 8 Average Carried 6 | 1 6 7 8 Final Capacity 10 | 8 8 8 10 Final Carried 8 | 2 8 8 8 Class Distribution -------------------- 58% | Mutant 41% | Gunner Dominant Class ---------------- Mutant | -10/Materials Gunner | -9/Materials Gunner | -9/Mines Resources | -11 -10 -9 -9 ----------- Run | Yrd Mat Mat Min Matter Collected 547 | 257 226 20 44 Remotely . | . . . . Salvage Created 459 | 19 402 38 . Parts 38 | 5 26 7 . Haulers Intercepted . | . . . . Recyclers Shooed . | . . . . Parts Field Recycled . | . . . . Retrieved Matter . | . . . . Parts Self-Destructed . | . . . . Prevented . | . . . . Kills | -11 -10 -9 -9 ------- Run | Yrd Mat Mat Min Combat Hostiles Destroyed 15 | . 12 3 . Guns 15 | . 12 3 . Classes Destroyed 4 | 1 3 . . Tunneler 1 | 1 . . . Watcher 1 | . 1 . . Swarmer 6 | . 3 3 . Grunt 9 | . 9 . . Best Kill Streak 4 | 1 4 2 . Combat Bots Only 3 | . 3 2 . Max Kills in Single Turn 2 | 1 2 1 . Gunslinging 1 | . 1 . . Exploded . | . . . . Melee . | . . . . Uniques/NPCs Destroyed . | . . . . Combat | -11 -10 -9 -9 -------- Run | Yrd Mat Mat Min Hostile Shots Fired 110 | . 86 10 14 Missed 29 | . 21 3 5 Damage Taken 1199 | . 712 54 433 Core 277 | . 183 15 79 Absorbed by Shields . | . . . . Regen/Repaired (Parts) 88 | . 88 . . Core Remaining (%) 63 | 100 26 . . Volleys Fired 54 | 1 46 7 . Largest 4 | 2 2 4 . Hottest 92 | 90 90 92 . Shots Fired 122 | 2 92 28 . Gun 122 | 2 92 28 . Cannon . | . . . . Launcher . | . . . . Special . | . . . . Kinetic 91 | . 63 28 . Thermal 28 | 1 27 . . Explosive . | . . . . Electromagnetic 3 | 1 2 . . Robot Hit Streak 10 | 1 10 3 . Robot Miss Streak 8 | . 2 8 . Penetration Max . | . . . . Secondary Targets 1 | . 1 . . Max Gunslinging Chain 1 | . 1 . . Shots Hit Robots 72 | 1 60 11 . Core Hits 30 | 1 25 4 . Critical Kills 1 | . 1 . . Critical Parts Destroyed . | . . . . Critical Strikes 1 | . 1 . . Destroy 1 | . 1 . . Melee Attacks . | . . . . Impact . | . . . . Slashing . | . . . . Piercing . | . . . . Sneak Attacks . | . . . . Combat Hostiles . | . . . . Follow-up Attacks . | . . . . Damage Inflicted 882 | 15 743 124 . Guns 874 | 15 735 124 . Cannons . | . . . . Explosions . | . . . . Melee . | . . . . Ramming 8 | . 8 . . Kinetic 655 | . 531 124 . Thermal 204 | . 204 . . Explosive . | . . . . Electromagnetic 15 | 15 . . . Impact . | . . . . Slashing . | . . . . Piercing . | . . . . Highest Corruption . | . . . . Average Corruption . | . . . . Corruption Purged . | . . . . Corruption Blocked . | . . . . Overload Shots . | . . . . Overflow Damage . | . . . . Projectiles . | . . . . Explosions . | . . . . Melee . | . . . . Knockbacks 1 | . 1 . . Impact 1 | . 1 . . Kinetic . | . . . . Secondary . | . . . . Self-Inflicted Damage 4 | . 4 . . Shots . | . . . . Rammed 1 | . 1 . . Targets Rammed 1 | . 1 . . Kicked . | . . . . Crushed . | . . . . Highest Temperature 164 | 30 164 80 . Average Temperature 50 | 17 53 36 . Received Heat Transfer 375 | . 363 . 12 Siege Activations . | . . . . Robots Corrupted . | . . . . Combat Hostiles . | . . . . Parts Fried . | . . . . Impact Corruptions . | . . . . Robots Melted . | . . . . Combat Hostiles . | . . . . Parts Melted 1 | . 1 . . Heat Transferred 592 | . 592 . . Parts Sabotaged . | . . . . Parts Stolen . | . . . . Parts Stripped . | . . . . Power Chain Reactions . | . . . . Alert | -11 -10 -9 -9 ------- Run | Yrd Mat Mat Min Peak Influence 249 | 5 249 204 24 Initial 79 | . 3 79 9 Average 98 | 2 121 91 10 Maximum Alert Level 1 | . 1 1 . Low Security (%) 89 | 100 83 96 100 Level 1 10 | . 16 3 . Level 2 . | . . . . Level 3 . | . . . . Level 4 . | . . . . Level 5 . | . . . . High Security . | . . . . Max Security . | . . . . Squads Dispatched 2 | . 2 . . Investigation 1 | . 1 . . Extermination . | . . . . Reinforcement 1 | . 1 . . Assault . | . . . . Garrison . | . . . . Intercept . | . . . . Searches Triggered . | . . . . Construction Impeded . | . . . . Haulers Reinforced . | . . . . Active Scanning Responses . | . . . . Cargo Convoy Interrupts . | . . . . Stealth | -11 -10 -9 -9 --------- Run | Yrd Mat Mat Min Distress Signals 3 | . 1 2 . Communications Jammed . | . . . . Distress Signals . | . . . . Times Spotted 29 | . 20 8 1 Peak Tracking Total 8 | . 8 5 1 Tactical Retreats 5 | . 3 2 . Traps | -11 -10 -9 -9 ------- Run | Yrd Mat Mat Min Traps Triggered 1 | . 1 . . Indirectly . | . . . . Trap Hack Attempts . | . . . . Triggered . | . . . . Disarmed . | . . . . Reprogrammed . | . . . . Reused . | . . . . Traps Extracted . | . . . . Installed . | . . . . Triggered . | . . . . Machines | -11 -10 -9 -9 ---------- Run | Yrd Mat Mat Min Machines Disabled . | . . . . Max in Single Turn . | . . . . Machines Repaired . | . . . . Machines Dismantled . | . . . . Machines Sabotaged . | . . . . Overloaded Fab Kills . | . . . . Hacking | -11 -10 -9 -9 --------- Run | Yrd Mat Mat Min Machines Accessed 4 | . 2 2 . Terminals 3 | . 1 2 . Fabricators . | . . . . Repair Stations 1 | . 1 . . Recycling Units . | . . . . Scanalyzers . | . . . . Garrison Access . | . . . . Total Hacks 6 | . 4 2 . Successful 2 | . 2 . . Failed 4 | . 2 2 . Catastrophic 2 | . . 2 . Database Lockouts . | . . . . Manual 4 | . 2 2 . Terminals 4 | . 2 2 . Fabricators . | . . . . Repair Stations 2 | . 2 . . Recycling Units . | . . . . Scanalyzers . | . . . . Garrison Access . | . . . . Terminal Hacks . | . . . . Fabricator Hacks . | . . . . Repair Station Hacks 2 | . 2 . . Scan Component 1 | . 1 . . Repair 1 | . 1 . . Recycling Unit Hacks . | . . . . Scanalyzer . | . . . . Garrison Access Hacks . | . . . . Unauthorized Hacks . | . . . . Terminals . | . . . . Fabricators . | . . . . Repair Stations . | . . . . Recycling Units . | . . . . Scanalyzers . | . . . . Garrison Access . | . . . . Data Cores Recovered . | . . . . Used . | . . . . Hacking Detections 4 | . 2 2 . Full Trace Events . | . . . . Feedback Events . | . . . . Feedback Blocked . | . . . . Robot Schematics Acquired . | . . . . Robots Built . | . . . . Authchips . | . . . . Time . | . . . . Total Robot Build Rating . | . . . . Part Schematics Acquired . | . . . . Parts Built . | . . . . Authchips . | . . . . Time . | . . . . Total Part Build Rating . | . . . . Parts Repaired 1 | . 1 . . Time 26 | . 26 . . Parts Recycled . | . . . . Recycled Matter . | . . . . Retrieved Matter . | . . . . Retrieved Components . | . . . . Parts Scanalyzed . | . . . . Part Schematics Acquired . | . . . . Parts Damaged . | . . . . Bothacking | -11 -10 -9 -9 ------------ Run | Yrd Mat Mat Min Used RIF Installer . | . . . . Robots Hacked . | . . . . Non-combat . | . . . . Combat . | . . . . Robot Hacks Applied . | . . . . Relay Couplers Released . | . . . . Fabnet Peak Effective % . | . . . . Robots Rewired . | . . . . Allies Hacked . | . . . . Hacks Repelled . | . . . . Allies | -11 -10 -9 -9 -------- Run | Yrd Mat Mat Min Total Allies . | . . . . Largest Group . | . . . . Highest-Rated Group . | . . . . Highest-Rated Ally . | . . . . Total Orders . | . . . . Ally Attacks . | . . . . Total Damage . | . . . . Kills . | . . . . Allies Corrupted . | . . . . Allies Melted . | . . . . Intel | -11 -10 -9 -9 ------- Run | Yrd Mat Mat Min Robot Analysis Total . | . . . . Derelict Logs Recovered . | . . . . Drone Launches . | . . . . Drone Recoveries . | . . . . Exploration | -11 -10 -9 -9 ------------- Run | Yrd Mat Mat Min Turns Passed 1275 | 59 699 431 86 Spaces Moved 635 | 43 361 179 52 Core 3 | 2 1 . . Treads . | . . . . Legs . | . . . . Wheels 55 | 41 14 . . Hover 577 | . 346 179 52 Flight . | . . . . Fastest Speed 50 | 50 56 116 116 Average Speed 104 | 87 97 116 125 Slowest Speed 250 | 90 250 116 240 Overloaded Moves . | . . . . Propulsion Burnouts . | . . . . Robots Hopped . | . . . . Cave-ins Triggered . | . . . . Exploration Rate (%) 22 | 4 50 25 12 Regions Visited 3 Branch Regions 1 Pre-discovered Areas . | . . . . Known Exits Taken . | . . . . Unknown Exits Taken 3 | 1 1 1 . Scrap Searched 1 | . . . 1 Spaces Dug . | . . . . Terrain Destroyed . | . . . . Melee . | . . . . Projectile . | . . . . AOE . | . . . . Terrain Rammed . | . . . . Walls Destroyed . | . . . . Machines Disabled . | . . . . Actions | -11 -10 -9 -9 --------- Run | Yrd Mat Mat Min Total 1138 | 59 621 385 73 Wait 395 | 5 179 192 19 Move 632 | 42 360 178 52 Hop . | . . . . Pick Up 18 | 4 12 2 . Fast Attach 10 | 5 5 . . Attach 8 | 2 4 2 . Detach . | . . . . Swap 8 | . 5 2 1 Drop 12 | . 9 2 1 Fire 54 | 1 46 7 . Melee . | . . . . Ram 1 | . 1 . . Kick . | . . . . Crush . | . . . . Escape Stasis . | . . . . Rewire . | . . . . Trap . | . . . . Miscellaneous . | . . . . Route ------- -11/Scrapyard -10/Materials -9/Materials -9/Mines History --------- Turn | Location | Event 5 | -11/Scrapyard | Discovered new exit (range 15) 60 | -11/Scrapyard | Entered Materials 307 | -10/Materials | Build established: Mutant 393 | -10/Materials | Repaired Assault Rifle 494 | -10/Materials | Core integrity fell below 50% 733 | -10/Materials | Discovered new exit (range 13) 759 | -10/Materials | Entered another Materials area 759 | -9/Materials | Evolved 2 slots: Weapon x2 1059 | -9/Materials | Build established: Gunner 1160 | -9/Materials | Discovered new exit (range 8) 1190 | -9/Materials | Entered Mines 1276 | -9/Mines | Self-destructed Last Messages --------------- 01227_ Dropped Sml. Storage Unit. 01258_ YI-UF0: "WHAAM!" 01258_ YI-UF0: "BAROOM!" 01259_ YI-UF0: "Whaaaaaaaa!" 01259_ T-07 Excavator is excavating. 01262_ YI-UF0: "WHAAM!" 01262_ T-07 Excavator is excavating. 01264_ Plasma Injector explodes. 01264_ Imp. Hover Unit destroyed. 01265_ YI-UF0 mumbles something. 01266_ T-07 Excavator is excavating. 01267_ The unstable cave ceiling collapses. 01271_ T-07 Excavator is excavating. 01273_ YI-UF0 mumbles something. 01273_ The unstable cave ceiling collapses. 01274_ Shotgun destroyed. 01275_ T-07 Excavator is excavating. 01276_ The unstable cave ceiling collapses. 01276_ Lgt. Nuclear Core destroyed. 01276_ Imp. Hover Unit destroyed. Map ----- +----------------------------------------------------+ | ?????????????????????????????????????????????????? | | ?????????????????????????????????????????????????? | | ?????????????????????????????????????????????????? | | ?????????????????????????????????????????????????? | | ?????????????????????????????????????????????????? | | ?????????????????????????????????????????????????? | | ?????????????????????????????????????????????????? | | ?????????????????????????????????????????????????? | | ?????????????????????????????????????????????????? | | ?????????????????????????????????????????????????? | | ??#??????????????????????????? ??????????????????? | | ?## ?????????????????????????? #???????????????? | | ## ???????#####???????????? #???????????????? | | # ?????## ##?????????? # ???????????????? | | ###### #?????????? #???????????????? | | = ##????????? #???????????????? | | # ! ########?? ????????????????? | | ## ######## ##? #????????????????? | | ???????????# #? #????????????????? | | ???????????# ### ## #????????????????? | | ???????????# ##?# ## # ##???????????????? | | ???????????####??# #### # g ##??????????????? | | ?????????????????# #?# ### #?????????? | | ?????????????????# ### t ??????????? | | ?????????????????# ## ;#??????????????? | | ?????????????????# r @ ##??????????????? | | ?????????????????##### ;#??????????????? | | ????????????????????# #??????????????? | | ????????????????????## #??????????????? | | ?????????????????????# ##??????????????? | | ?????????????????????### #???????????????? | | ???????????????????????#### ###???????????????? | | ???????????????????????????#####?????????????????? | | ?????????????????????????????????????????????????? | | | | | | | | | | | | | | | | | | | | | | | | | | | | | | | | | +----------------------------------------------------+ Best States ------------- Heat Dissipation 28 Energy Generation 14 Energy Capacity 160 Matter Stores 294 Matter Capacity 300 Sight Range 16 Terrain Scan Density 10 Evasion (%) 53 Item Schematics ----------------- None Robot Schematics ------------------ None Fabricated ------------ Nothing Alien Tech Used ----------------- None Achievements -------------- None Challenges ------------ None Game ------ Seed ZioniteStealthPendant Manual? 0 Play Time 00:11:20 Cumulative 43.6 hours Start 2024.09.15 @ 21:19:23 End 2024.09.15 @ 21:33:24 Sessions 1 Manual Loads 0 Difficulty Rogue Special Mode None Game No. 78 Rogue 58 Adventurer 20 Explorer 0 Win Type - Total 0 Types 0/0/0/0/0/0/0/0/0 Lore% 11 Gallery% 30 Achievement% 26 Wizard Run 0 Options --------- Layout 0 ASCII 0 Keyboard 0 Movement Mouse Keybinds 0 Fullscreen 1 Font 36/SmallcapsGlow++ Map View 76x50 Zoom Use 0% Tactical HUD 1 Map Filters NONE Filters NONE Steam 1 RUN: 9d522383-e396-4440-b73d-05521a728d5d